[Event "53rd Indian Junior Open-ch 2024"]
[Site "Karnal"]
[Date "2024.09.23"]
[Round "10.3"]
[White "Mukund Hemant Agarwal"]
[Black "Madhvendra Pratap Sharma"]
[Result "0-1"]
[ECO "C06"]
[WhiteElo "2073"]
[BlackElo "2061"]
[Annotator "RC"]
[PlyCount "90"]
[EventDate "2024.09.16"]
[EventType "swiss"]
[EventCountry "IND"]
[SourceTitle "playchess.com"]
[Source "ChessBase"]
[SourceQuality "1"]
[TimeControl "5400+30"]

1. e4 {[%emt 0:00:02]} e6 {[%emt 0:02:03]} 2. d4 {[%emt 0:00:03]} d5 {[%emt 0:00:04]} 3. Nd2 {[%emt 0:00:11]} Be7 {[%emt 0:00:48]} 4. Ngf3 {[%emt 0:01:17]} Nf6 {[%emt 0:00:16]} 5. Bd3 {[%emt 0:01:14]} c5 {[%emt 0:00:20]} 6. e5 {[%emt 0:00:57]} Nfd7 {[%emt 0:00:12]} 7. c3 {[%emt 0:00:02]} Nc6 {[%emt 0:00:14]} 8. O-O {[%emt 0:02:45]} a5 {[%emt 0:03:41]} 9. Re1 {[%emt 0:19:04]} cxd4 {[%emt 0:00:56]} 10. cxd4 {[%emt 0:00:06]} Qb6 {[%emt 0:00:27]} 11. Qa4 {[%emt 0:12:54]} g5 {[%emt 0:01:58]} 12. h3 {[%emt 0:06:13]} h5 {[%emt 0:00:59]} 13. g4 {[%emt 0:14:32]} hxg4 {[%emt 0:01:17]} 14. hxg4 {[%emt 0:00:51]} f5 {[%emt 0:01:04]} 15. exf6 {[%emt 0:15:58]} Nxf6 {[%emt 0:00:33]} 16. Ne5 {[%emt 0:00:45]} Qxd4 {[%emt 0:09:02]} 17. Qxd4 {[%emt 0:03:06]} Nxd4 {[%emt 0:00:07]} 18. Nb3 {[%emt 0:00:15]} Nc6 {[%emt 0:15:21]} 19. f3 {[%emt 0:00:01]} Nxe5 {[%emt 0:20:59]} 20. Rxe5 {[%emt 0:00:05]} Kf7 {[%emt 0:01:36]} 21. Rxg5 {[%emt 0:03:15]} Nd7 {[%emt 0:02:24]} 22. Rh5 {[%emt 0:00:39]} Rxh5 {[%emt 0:00:31]} 23. gxh5 {[%emt 0:00:04]} Ne5 {[%emt 0:00:08]} 24. Be2 {[%emt 0:01:08]} Bd7 {[%emt 0:03:08]} 25. Be3 {[%emt 0:04:01]} Rg8+ {[%emt 0:05:06]} 26. Kh1 {[%emt 0:00:46]} a4 {[%emt 0:05:31]} 27. Nd2 {[%emt 0:02:57]} Bc6 {[%emt 0:04:24]} 28. Bd4 {[%emt 0:01:51]} Bf6 {[%emt 0:01:08]} 29. f4 {[%emt 0:05:23]} Nd3 {[%emt 0:09:08]} 30. Bxf6 {[%emt 0:01:40]} d4+ {[%emt 0:01:26]} 31. Bf3 {[%emt 0:00:45]} Kxf6 {[%emt 0:00:35]} 32. Bxc6 {[%emt 0:02:03]} bxc6 {[%emt 0:00:12]} 33. Rf1 {[%emt 0:00:56]} Nxb2 {[%emt 0:07:11]} 34. Ne4+ {[%emt 0:00:08]} Ke7 {[%emt 0:01:15]} 35. Rc1 {[%emt 0:00:56]} Rg4 {[%emt 0:01:47]} 36. Rxc6 {[%emt 0:00:31]} d3 {[%emt 0:00:53]} 37. Rc7+ {[%emt 0:00:39]} Kd8 {[%emt 0:01:16]} 38. Rb7 {[%emt 0:00:44]} a3 {[%emt 0:00:53]} 39. Nc5 {[%emt 0:00:28]} Kc8 {[%emt 0:00:18]} 40. Rb4 {[%emt 0:00:43]} d2 {[%emt 0:00:26]} 41. Rd4 {[%emt 0:00:13]} d1=Q+ {[%emt 0:00:11]} 42. Rxd1 {[%emt 0:00:04]} Nxd1 {[%emt 0:00:04]} 43. Nxe6 {[%emt 0:00:03]} Kd7 {[%emt 0:00:27]} 44. Nf8+ {[%emt 0:00:26]} Ke7 {[%emt 0:00:20]} 45. Ng6+ {[%emt 0:00:07]} Kf6 {[%emt 0:00:16]} 0-1

[Event "53rd Indian Junior Open-ch 2024"]
[Site "Karnal"]
[Date "2024.09.23"]
[Round "10.4"]
[White "Manish Anto Cristiano F"]
[Black "Vyom Malhotra"]
[Result "1/2-1/2"]
[ECO "E11"]
[WhiteElo "2364"]
[BlackElo "1960"]
[Annotator "RC"]
[PlyCount "120"]
[EventDate "2024.09.16"]
[EventType "swiss"]
[EventCountry "IND"]
[SourceTitle "playchess.com"]
[Source "ChessBase"]
[SourceQuality "1"]
[TimeControl "5400+30"]

1. d4 {[%emt 1:31:00]} Nf6 {[%emt 0:03:56]} 2. c4 {[%emt 0:00:00]} e6 {[%emt 0:00:05]} 3. Nf3 {[%emt 0:00:00]} Bb4+ {[%emt 0:00:08]} 4. Nbd2 {[%emt 0:00:00]} O-O {[%emt 0:00:26]} 5. a3 {[%emt 0:00:00]} Bxd2+ {[%emt 0:00:21]} 6. Qxd2 {[%emt 0:00:00]} a5 {[%emt 0:00:21]} 7. Qc2 {[%emt 0:00:00]} d6 {[%emt 0:06:00]} 8. Bg5 {[%emt 0:00:00]} Qe7 {[%emt 0:03:13]} 9. e3 {[%emt 0:00:00]} e5 {[%emt 0:01:35]} 10. Be2 {[%emt 0:00:00]} a4 {[%emt 0:08:59]} 11. O-O {[%emt 0:00:00]} h6 {[%emt 0:02:51]} 12. Bh4 {[%emt 0:00:00]} Bg4 {[%emt 0:01:34]} 13. h3 {[%emt 0:00:00]} Bh5 {[%emt 0:02:00]} 14. dxe5 {[%emt 0:00:00]} dxe5 {[%emt 0:00:17]} 15. Qf5 {[%emt 0:00:00]} Bxf3 {[%emt 0:05:54]} 16. Bxf3 {[%emt 0:00:00]} Nc6 {[%emt 0:00:08]} 17. Be4 {[%emt 0:00:00]} Qe6 {[%emt 0:08:16]} 18. Qxe6 {[%emt 0:00:00]} fxe6 {[%emt 0:00:57]} 19. Bxc6 {[%emt 0:00:00]} bxc6 {[%emt 0:00:05]} 20. Bg3 {[%emt 0:00:00]} Ra5 {[%emt 0:00:35]} 21. f3 {[%emt 0:00:00]} Rb8 {[%emt 0:04:50]} 22. Be1 {[%emt 0:00:00]} Rc5 {[%emt 0:06:36]} 23. Rc1 {[%emt 0:00:00]} Nd5 {[%emt 0:02:25]} 24. e4 {[%emt 0:00:00]} Nb6 {[%emt 0:06:31]} 25. Rf2 {[%emt 0:00:00]} Rxc4 {[%emt 0:05:58]} 26. Rfc2 {[%emt 0:00:00]} Rxc2 {[%emt 0:00:09]} 27. Rxc2 {[%emt 0:00:00]} Kf7 {[%emt 0:02:03]} 28. Rxc6 {[%emt 0:00:00]} Rb7 {[%emt 0:00:13]} 29. Bc3 {[%emt 0:00:00]} Nd7 {[%emt 0:02:18]} 30. Kf2 {[%emt 0:00:00]} Ra7 {[%emt 0:02:04]} 31. Ke2 {[%emt 0:00:00]} Nb8 {[%emt 0:00:27]} 32. Rc4 {[%emt 0:00:00]} Nd7 {[%emt 0:00:34]} 33. Bb4 {[%emt 0:00:00]} c5 {[%emt 0:00:27]} 34. Bd2 {[%emt 0:00:00]} Ke7 {[%emt 0:00:20]} 35. Kd3 {[%emt 0:00:00]} Kd6 {[%emt 0:00:45]} 36. Be3 {[%emt 0:00:00]} Kc6 {[%emt 0:03:07]} 37. Kc2 {[%emt 0:00:00]} Kb5 {[%emt 0:02:04]} 38. Rc3 {[%emt 0:00:00]} Rc7 {[%emt 0:00:28]} 39. Rd3 {[%emt 0:00:00]} Kc6 {[%emt 0:00:48]} 40. b3 {[%emt 0:01:56]} axb3+ {[%emt 0:00:15]} 41. Rxb3 {[%emt 0:00:02]} Nb6 {[%emt 0:00:58]} 42. Rc3 {[%emt 0:01:26]} Kb5 {[%emt 0:03:54]} 43. Rd3 {[%emt 0:01:52]} Rc8 {[%emt 0:02:18]} 44. Bc1 {[%emt 0:01:43]} Kc6 {[%emt 0:00:21]} 45. f4 {[%emt 0:02:13]} exf4 {[%emt 0:01:29]} 46. Bxf4 {[%emt 0:00:08]} Rf8 {[%emt 0:00:06]} 47. Rd6+ {[%emt 0:00:34]} Kb5 {[%emt 0:00:15]} 48. g3 {[%emt 0:03:03]} e5 {[%emt 0:00:40]} 49. Bc1 {[%emt 0:02:33]} Rf2+ {[%emt 0:02:16]} 50. Kd1 {[%emt 0:02:44]} Na4 {[%emt 0:05:23]} 51. Bd2 {[%emt 0:00:23]} Nb2+ {[%emt 0:00:59]} 52. Ke1 {[%emt 0:00:08]} Rh2 {[%emt 0:00:12]} 53. Rd5 {[%emt 0:02:13]} Rxh3 {[%emt 0:04:41]} 54. Bc3 {[%emt 0:01:02]} Na4 {[%emt 0:01:08]} 55. Bxe5 {[%emt 0:05:00]} g5 {[%emt 0:00:10]} 56. Kf2 {[%emt 0:00:00]} Rh2+ {[%emt 0:00:29]} 57. Kf3 {[%emt 0:00:00]} Ra2 {[%emt 0:01:13]} 58. Bg7 {[%emt 0:00:00]} Nb6 {[%emt 0:00:38]} 59. Rf5 {[%emt 0:00:00]} Rxa3+ {[%emt 0:00:07]} 60. Kf2 {[%emt 0:00:00]} Ra2+ {[%emt 0:00:50]} 1/2-1/2

[Event "53rd Indian Junior Open-ch 2024"]
[Site "Karnal"]
[Date "2024.09.23"]
[Round "10.5"]
[White "Jaiveer Mahendru"]
[Black "Shah Moxit J"]
[Result "1-0"]
[ECO "B08"]
[WhiteElo "2246"]
[BlackElo "1952"]
[Annotator "RC"]
[PlyCount "69"]
[EventDate "2024.09.16"]
[EventType "swiss"]
[EventCountry "IND"]
[SourceTitle "playchess.com"]
[Source "ChessBase"]
[SourceQuality "1"]
[TimeControl "5400+30"]

1. e4 {[%emt 0:03:02]} d6 {[%emt 0:00:08]} 2. d4 {[%emt 0:00:02]} Nf6 {[%emt 0:00:04]} 3. Nc3 {[%emt 0:00:02]} g6 {[%emt 0:00:09]} 4. Nf3 {[%emt 0:00:27]} Bg7 {[%emt 0:00:05]} 5. Be3 {[%emt 0:00:04]} O-O {[%emt 0:01:22]} 6. Qd2 {[%emt 0:00:02]} c6 {[%emt 0:06:56]} 7. Bh6 {[%emt 0:00:19]} b5 {[%emt 0:09:00]} 8. Bd3 {[%emt 0:00:04]} Nbd7 {[%emt 0:01:13]} 9. h4 {[%emt 0:00:27]} Bxh6 {[%emt 0:00:10]} 10. Qxh6 {[%emt 0:00:05]} Ng4 {[%emt 0:00:03]} 11. Qd2 {[%emt 0:01:17]} h5 {[%emt 0:00:04]} 12. Ne2 {[%emt 0:01:58]} e5 {[%emt 0:04:53]} 13. c3 {[%emt 0:01:07]} a6 {[%emt 0:04:36]} 14. Ng5 {[%emt 0:03:34]} Kg7 {[%emt 0:09:40]} 15. f3 {[%emt 0:01:17]} Ngf6 {[%emt 0:00:05]} 16. O-O-O {[%emt 0:01:36]} Qa5 {[%emt 0:04:51]} 17. Kb1 {[%emt 0:12:05]} Rb8 {[%emt 0:04:35]} 18. g4 {[%emt 0:06:30]} Rh8 {[%emt 0:05:32]} 19. gxh5 {[%emt 0:02:51]} Nxh5 {[%emt 0:01:30]} 20. f4 {[%emt 0:02:06]} c5 {[%emt 0:08:43]} 21. fxe5 {[%emt 0:05:29]} dxe5 {[%emt 0:00:14]} 22. Rdf1 {[%emt 0:00:26]} Rf8 {[%emt 0:01:08]} 23. Rhg1 {[%emt 0:00:44]} cxd4 {[%emt 0:03:15]} 24. Nxf7 {[%emt 0:01:07]} Ndf6 {[%emt 0:04:35]} 25. Nxe5 {[%emt 0:00:11]} Ng4 {[%emt 0:04:13]} 26. Rxf8 {[%emt 0:02:58]} Nxe5 {[%emt 0:00:08]} 27. Qg5 {[%emt 0:00:25]} Kxf8 {[%emt 0:07:02]} 28. Qxe5 {[%emt 0:00:05]} Rb7 {[%emt 0:01:33]} 29. Qh8+ {[%emt 0:00:10]} Ke7 {[%emt 0:00:18]} 30. Nxd4 {[%emt 0:00:46]} Bd7 {[%emt 0:00:43]} 31. Rxg6 {[%emt 0:00:08]} b4 {[%emt 0:02:04]} 32. Re6+ {[%emt 0:03:03]} Kf7 {[%emt 0:01:03]} 33. Re5 {[%emt 0:00:59]} Qa4 {[%emt 0:04:12]} 34. Qxh5+ {[%emt 0:00:18]} Kf8 {[%emt 0:00:12]} 35. Qh6+ {[%emt 0:00:24]} 1-0

[Event "53rd Indian Junior Open-ch 2024"]
[Site "Karnal"]
[Date "2024.09.23"]
[Round "10.6"]
[White "Jihan Tejas Shah"]
[Black "Agnivo Chakraborty"]
[Result "1-0"]
[ECO "D08"]
[WhiteElo "2089"]
[BlackElo "1943"]
[Annotator "RC"]
[PlyCount "121"]
[EventDate "2024.09.16"]
[EventType "swiss"]
[EventCountry "IND"]
[SourceTitle "playchess.com"]
[Source "ChessBase"]
[SourceQuality "1"]
[TimeControl "5400+30"]

1. d4 {[%emt 0:00:11]} d5 {[%emt 0:00:06]} 2. c4 {[%emt 0:00:03]} e5 {[%emt 0:00:06]} 3. dxe5 {[%emt 0:01:19]} d4 {[%emt 1:31:48]} 4. Nf3 {[%emt 0:00:38]} Nc6 {[%emt 0:00:00]} 5. a3 {[%emt 0:03:01]} Nge7 {[%emt 0:00:00]} 6. b4 {[%emt 0:01:01]} Ng6 {[%emt 0:00:00]} 7. Bb2 {[%emt 0:05:52]} a5 {[%emt 0:00:00]} 8. b5 {[%emt 0:02:23]} Ncxe5 {[%emt 0:00:00]} 9. Nxe5 {[%emt 0:00:14]} Nxe5 {[%emt 0:00:00]} 10. Qxd4 {[%emt 0:00:23]} Qxd4 {[%emt 0:00:00]} 11. Bxd4 {[%emt 0:00:03]} Nxc4 {[%emt 0:00:00]} 12. e3 {[%emt 0:00:55]} Be6 {[%emt 0:00:00]} 13. Be2 {[%emt 0:07:07]} O-O-O {[%emt 0:00:00]} 14. O-O {[%emt 0:04:43]} Kb8 {[%emt 0:00:00]} 15. Rc1 {[%emt 0:06:33]} Nd6 {[%emt 0:00:00]} 16. Nd2 {[%emt 0:03:37]} b6 {[%emt 0:00:00]} 17. Nf3 {[%emt 0:07:15]} f6 {[%emt 0:00:00]} 18. Bb2 {[%emt 0:03:24]} Bg4 {[%emt 0:00:00]} 19. a4 {[%emt 0:04:57]} Ne4 {[%emt 0:00:00]} 20. Rc2 {[%emt 0:06:57]} Bxf3 {[%emt 0:00:00]} 21. Bxf3 {[%emt 0:00:43]} Nd2 {[%emt 0:00:00]} 22. Be2 {[%emt 0:09:53]} Bb4 {[%emt 0:00:00]} 23. Ra2 {[%emt 0:03:43]} Nb3 {[%emt 0:00:00]} 24. g3 {[%emt 0:02:17]} Rd6 {[%emt 0:00:00]} 25. Kg2 {[%emt 0:02:18]} Rhd8 {[%emt 0:00:00]} 26. Bc4 {[%emt 0:01:40]} Nc5 {[%emt 0:00:00]} 27. Bd4 {[%emt 0:00:45]} Ne6 {[%emt 0:00:00]} 28. Bxe6 {[%emt 0:00:31]} Rxe6 {[%emt 0:00:00]} 29. Rc4 {[%emt 0:00:57]} c5 {[%emt 0:00:00]} 30. bxc6 {[%emt 0:02:11]} Kc7 {[%emt 0:00:00]} 31. Rac2 {[%emt 0:00:54]} Rb8 {[%emt 0:00:00]} 32. f4 {[%emt 0:01:59]} b5 {[%emt 0:00:00]} 33. axb5 {[%emt 0:00:02]} Rxb5 {[%emt 0:00:00]} 34. Kf3 {[%emt 0:01:32]} h5 {[%emt 0:00:00]} 35. e4 {[%emt 0:01:36]} Bd6 {[%emt 0:00:00]} 36. Bc5 {[%emt 0:03:59]} Bxc5 {[%emt 0:00:00]} 37. Rxc5 {[%emt 0:00:01]} Rxc5 {[%emt 0:00:00]} 38. Rxc5 {[%emt 0:00:13]} a4 {[%emt 0:00:00]} 39. Rc4 {[%emt 0:03:48]} Rxc6 {[%emt 0:00:00]} 40. Rxa4 {[%emt 0:00:00]} Rc3+ {[%emt 0:05:05]} 41. Kf2 {[%emt 0:00:16]} g5 {[%emt 0:03:37]} 42. Ra6 {[%emt 0:01:24]} Rc2+ {[%emt 0:01:12]} 43. Ke3 {[%emt 0:00:26]} gxf4+ {[%emt 0:02:28]} 44. gxf4 {[%emt 0:00:30]} f5 {[%emt 0:00:25]} 45. e5 {[%emt 0:02:03]} Rc3+ {[%emt 0:06:28]} 46. Kf2 {[%emt 0:00:48]} h4 {[%emt 0:02:15]} 47. Rf6 {[%emt 0:00:19]} Rc2+ {[%emt 0:00:00]} 48. Ke3 {[%emt 0:01:16]} Rxh2 {[%emt 0:00:00]} 49. Rxf5 {[%emt 0:00:04]} h3 {[%emt 0:00:34]} 50. Rh5 {[%emt 0:00:15]} Ra2 {[%emt 0:00:29]} 51. Ke4 {[%emt 0:00:13]} h2 {[%emt 0:00:26]} 52. Kf5 {[%emt 0:00:07]} Kd7 {[%emt 0:00:48]} 53. Rh7+ {[%emt 0:00:04]} Ke8 {[%emt 0:00:36]} 54. Kf6 {[%emt 0:00:15]} Kd8 {[%emt 0:00:31]} 55. f5 {[%emt 0:00:09]} Re2 {[%emt 0:00:18]} 56. e6 {[%emt 0:00:09]} Kc8 {[%emt 0:00:38]} 57. Kf7 {[%emt 0:00:19]} Kc7 {[%emt 0:00:10]} 58. f6 {[%emt 0:00:05]} Kd6 {[%emt 0:00:19]} 59. e7 {[%emt 0:00:04]} Kd7 {[%emt 0:00:09]} 60. Rxh2 {[%emt 0:00:08]} Re5 {[%emt 0:00:04]} 61. Rd2+ {[%emt 0:00:06]} 1-0

[Event "53rd Indian Junior Open-ch 2024"]
[Site "Karnal"]
[Date "2024.09.23"]
[Round "10.7"]
[White "Hari Ganesh T"]
[Black "Arul Prakash N"]
[Result "1-0"]
[ECO "E05"]
[WhiteElo "2029"]
[BlackElo "1922"]
[Annotator "ChessBase"]
[PlyCount "87"]
[EventDate "2024.09.16"]
[EventType "swiss"]
[EventCountry "IND"]
[SourceTitle "playchess.com"]
[Source "ChessBase"]
[SourceQuality "1"]
[TimeControl "5400+30"]

1. d4 {[%emt 0:00:04]} Nf6 {[%emt 0:06:23]} 2. c4 {[%emt 0:00:12]} e6 {[%emt 0:01:10]} 3. Nf3 {[%emt 0:00:06]} d5 {[%emt 0:00:11]} 4. g3 {[%emt 0:00:07]} Be7 {[%emt 0:00:42]} 5. Bg2 {[%emt 0:00:05]} O-O {[%emt 0:00:12]} 6. O-O {[%emt 0:00:03]} dxc4 {[%emt 0:00:09]} 7. Qc2 {[%emt 0:00:13]} a6 {[%emt 0:01:15]} 8. a4 {[%emt 0:00:18]} Bd7 {[%emt 0:00:06]} 9. Rd1 {[%emt 0:00:38]} Bc6 {[%emt 0:00:29]} 10. Nc3 {[%emt 0:00:09]} Nbd7 {[%emt 0:01:07]} 11. e4 {[%emt 0:01:01]} b6 {[%emt 0:13:42]} 12. d5 {[%emt 0:00:52]} exd5 {[%emt 0:00:36]} 13. e5 {[%emt 0:00:55]} Ne4 {[%emt 0:13:47]} 14. Nxd5 {[%emt 0:02:50]} Bxd5 {[%emt 0:08:57]} 15. Rxd5 {[%emt 0:00:51]} Nec5 {[%emt 0:03:25]} 16. Qxc4 {[%emt 0:03:08]} c6 {[%emt 0:02:24]} 17. Rd2 {[%emt 0:08:09]} b5 {[%emt 0:06:52]} 18. Qg4 {[%emt 0:03:38]} Qc7 {[%emt 0:07:34]} 19. Rd1 {[%emt 0:07:22]} Ne6 {[%emt 0:04:54]} 20. Bd2 {[%emt 0:06:04]} Rac8 {[%emt 0:04:13]} 21. axb5 {[%emt 0:12:35]} axb5 {[%emt 0:00:18]} 22. Ba5 {[%emt 0:00:02]} Nxe5 {[%emt 0:05:41]} 23. Qf5 {[%emt 0:00:50]} Nxf3+ {[%emt 0:01:37]} 24. Bxf3 {[%emt 0:00:01]} Qb7 {[%emt 0:02:00]} 25. b4 {[%emt 0:00:47]} Bf6 {[%emt 0:05:07]} 26. Ra3 {[%emt 0:06:29]} Qa7 {[%emt 0:07:48]} 27. Be4 {[%emt 0:00:40]} Ng5 {[%emt 0:00:22]} 28. Bc2 {[%emt 0:00:37]} Qe7 {[%emt 0:02:40]} 29. Re3 {[%emt 0:11:25]} g6 {[%emt 0:00:15]} 30. Qg4 {[%emt 0:03:43]} Ne6 {[%emt 0:00:43]} 31. Bb3 {[%emt 0:00:01]} Rfe8 {[%emt 0:00:38]} 32. Rde1 {[%emt 0:00:07]} Qd7 {[%emt 0:00:36]} 33. Rd1 {[%emt 0:00:27]} Qe7 {[%emt 0:00:11]} 34. h4 {[%emt 0:02:17]} h5 {[%emt 0:00:42]} 35. Qe2 {[%emt 0:00:52]} Kg7 {[%emt 0:00:41]} 36. Bxe6 {[%emt 0:01:47]} fxe6 {[%emt 0:00:02]} 37. Red3 {[%emt 0:00:01]} Qf7 {[%emt 0:00:27]} 38. Qe4 {[%emt 0:03:50]} Kh7 {[%emt 0:00:56]} 39. Bb6 {[%emt 0:00:29]} Be7 {[%emt 0:00:35]} 40. Rf3 {[%emt 0:04:08]} Bf6 {[%emt 0:00:19]} 41. Rd6 {[%emt 0:00:37]} Re7 {[%emt 0:00:42]} 42. Bd4 {[%emt 0:00:33]} e5 {[%emt 0:00:26]} 43. Rfxf6 {[%emt 0:00:17]} Qg8 {[%emt 0:00:13]} 44. Rxg6 {[%emt 0:00:14]} 1-0

[Event "53rd Indian Junior Open-ch 2024"]
[Site "Karnal"]
[Date "2024.09.23"]
[Round "10.8"]
[White "Utkrisht Tuli"]
[Black "Arshpreet Singh"]
[Result "1/2-1/2"]
[ECO "B44"]
[WhiteElo "2007"]
[BlackElo "1905"]
[Annotator "RC"]
[PlyCount "88"]
[EventDate "2024.09.16"]
[EventType "swiss"]
[EventCountry "IND"]
[SourceTitle "playchess.com"]
[Source "ChessBase"]
[SourceQuality "1"]
[TimeControl "5400+30"]

1. e4 {[%emt 0:00:26]} c5 {[%emt 0:00:02]} 2. Nf3 {[%emt 0:00:15]} Nc6 {[%emt 0:00:05]} 3. d4 {[%emt 0:00:04]} cxd4 {[%emt 0:00:04]} 4. Nxd4 {[%emt 0:00:05]} e6 {[%emt 0:00:03]} 5. Nb5 {[%emt 0:00:52]} d6 {[%emt 0:00:07]} 6. c4 {[%emt 0:00:05]} a6 {[%emt 0:03:01]} 7. N5c3 {[%emt 0:00:19]} Nf6 {[%emt 0:00:25]} 8. Be2 {[%emt 0:00:33]} Qc7 {[%emt 0:01:19]} 9. O-O {[%emt 0:00:42]} Be7 {[%emt 0:00:25]} 10. Be3 {[%emt 0:00:40]} b6 {[%emt 0:00:08]} 11. Na3 {[%emt 0:00:22]} O-O {[%emt 0:00:30]} 12. Rc1 {[%emt 0:00:20]} Ne5 {[%emt 0:06:23]} 13. f4 {[%emt 0:01:23]} Ng6 {[%emt 0:00:02]} 14. Qe1 {[%emt 0:01:35]} Bb7 {[%emt 0:05:07]} 15. Bf3 {[%emt 0:01:05]} Bc6 {[%emt 0:05:17]} 16. Nd5 {[%emt 0:17:01]} Qb7 {[%emt 0:00:13]} 17. Nxe7+ {[%emt 0:02:02]} Nxe7 {[%emt 0:00:16]} 18. e5 {[%emt 0:00:59]} dxe5 {[%emt 0:00:54]} 19. fxe5 {[%emt 0:01:15]} Nd7 {[%emt 0:00:06]} 20. Bd4 {[%emt 0:05:36]} Nf5 {[%emt 0:18:15]} 21. Bc3 {[%emt 0:01:37]} Nc5 {[%emt 0:00:59]} 22. Rd1 {[%emt 0:02:03]} Rfd8 {[%emt 0:14:05]} 23. Nc2 {[%emt 0:07:20]} Bxf3 {[%emt 0:20:59]} 24. Rxd8+ {[%emt 0:05:56]} Rxd8 {[%emt 0:00:02]} 25. Rxf3 {[%emt 0:00:11]} Qc6 {[%emt 0:10:12]} 26. b3 {[%emt 0:06:31]} Ne4 {[%emt 0:06:09]} 27. h3 {[%emt 0:03:38]} Ng5 {[%emt 0:01:36]} 28. Rf4 {[%emt 0:00:53]} Rd3 {[%emt 0:00:23]} 29. Nb4 {[%emt 0:02:11]} Qc5+ {[%emt 0:05:09]} 30. Kh2 {[%emt 0:00:26]} Re3 {[%emt 0:00:53]} 31. Qd2 {[%emt 0:06:10]} Ne4 {[%emt 0:00:14]} 32. Qd8+ {[%emt 0:09:09]} Qf8 {[%emt 0:00:06]} 33. Qxf8+ {[%emt 0:00:04]} Kxf8 {[%emt 0:00:04]} 34. Bb2 {[%emt 0:00:05]} Nfg3 {[%emt 0:02:20]} 35. Rf3 {[%emt 0:04:51]} Re2 {[%emt 0:00:59]} 36. Ba3 {[%emt 0:00:07]} Ke8 {[%emt 0:00:44]} 37. Rxg3 {[%emt 0:01:29]} Nxg3 {[%emt 0:00:05]} 38. Kxg3 {[%emt 0:00:02]} a5 {[%emt 0:00:33]} 39. Nc6 {[%emt 0:00:04]} Rxa2 {[%emt 0:00:18]} 40. Bd6 {[%emt 0:00:31]} Rd2 {[%emt 0:01:07]} 41. c5 {[%emt 0:01:03]} Rd3+ {[%emt 0:00:30]} 42. Kf4 {[%emt 0:00:06]} Rxb3 {[%emt 0:00:24]} 43. cxb6 {[%emt 0:00:04]} Rxb6 {[%emt 0:00:23]} 44. Nxa5 {[%emt 0:00:05]} Kd7 {[%emt 0:00:48]} 1/2-1/2

[Event "53rd Indian Junior Open-ch 2024"]
[Site "Karnal"]
[Date "2024.09.23"]
[Round "10.9"]
[White "Nimay Agrawal"]
[Black "Rohit S"]
[Result "1/2-1/2"]
[ECO "C50"]
[WhiteElo "1960"]
[BlackElo "2309"]
[Annotator "RC"]
[PlyCount "112"]
[EventDate "2024.09.16"]
[EventType "swiss"]
[EventCountry "IND"]
[SourceTitle "playchess.com"]
[Source "ChessBase"]
[SourceQuality "1"]
[TimeControl "5400+30"]

1. e4 {[%emt 1:31:00]} e5 {[%emt 1:31:00]} 2. Nf3 {[%emt 0:00:30]} Nc6 {[%emt 0:00:30]} 3. Bc4 {[%emt 0:00:30]} Bc5 {[%emt 0:00:30]} 4. d3 {[%emt 0:00:30]} Nf6 {[%emt 0:00:30]} 5. O-O {[%emt 0:00:30]} d6 {[%emt 0:00:30]} 6. h3 {[%emt 0:00:30]} Na5 {[%emt 0:00:30]} 7. Bb3 {[%emt 0:00:30]} Nxb3 {[%emt 0:00:30]} 8. axb3 {[%emt 0:00:30]} Qe7 {[%emt 0:00:30]} 9. Nc3 {[%emt 0:00:30]} a6 {[%emt 0:00:30]} 10. d4 {[%emt 0:00:30]} Ba7 {[%emt 0:00:30]} 11. Re1 {[%emt 0:00:30]} O-O {[%emt 0:00:30]} 12. Be3 {[%emt 0:00:30]} c6 {[%emt 0:00:30]} 13. Qd2 {[%emt 0:00:30]} b5 {[%emt 0:00:30]} 14. dxe5 {[%emt 0:00:30]} dxe5 {[%emt 0:00:30]} 15. Bxa7 {[%emt 0:00:30]} Rxa7 {[%emt 0:00:30]} 16. Rad1 {[%emt 0:00:30]} Rd7 {[%emt 0:00:30]} 17. Qe3 {[%emt 0:00:30]} Rfd8 {[%emt 0:00:30]} 18. Rxd7 {[%emt 0:00:30]} Rxd7 {[%emt 0:00:30]} 19. Qg5 {[%emt 0:00:30]} b4 {[%emt 0:00:30]} 20. Na4 {[%emt 0:00:30]} Qe8 {[%emt 0:00:30]} 21. Nb6 {[%emt 0:00:30]} Re7 {[%emt 0:00:30]} 22. Nxc8 {[%emt 0:00:30]} Qxc8 {[%emt 0:00:30]} 23. Nh4 {[%emt 0:00:30]} Re6 {[%emt 0:00:30]} 24. Nf5 {[%emt 0:00:30]} Qf8 {[%emt 0:00:30]} 25. f3 {[%emt 0:00:30]} Ne8 {[%emt 0:00:30]} 26. Rd1 {[%emt 0:00:30]} h6 {[%emt 0:00:30]} 27. Qg3 {[%emt 0:00:30]} g6 {[%emt 0:00:30]} 28. Kh2 {[%emt 0:00:30]} Kh7 {[%emt 0:00:30]} 29. Ne3 {[%emt 0:00:30]} Qc5 {[%emt 0:00:30]} 30. Nc4 {[%emt 0:00:30]} Nd6 {[%emt 0:00:30]} 31. Nxd6 {[%emt 0:00:30]} Rxd6 {[%emt 0:00:30]} 32. Rxd6 {[%emt 0:00:30]} Qxd6 {[%emt 0:00:30]} 33. Qf2 {[%emt 0:00:30]} c5 {[%emt 0:00:30]} 34. Qe2 {[%emt 0:00:30]} Qf6 {[%emt 0:00:30]} 35. Qc4 {[%emt 0:00:30]} Qf4+ {[%emt 0:00:30]} 36. Kh1 {[%emt 0:00:30]} Qc1+ {[%emt 0:00:30]} 37. Kh2 {[%emt 0:00:30]} Qf4+ {[%emt 0:00:30]} 38. Kh1 {[%emt 0:00:30]} Qc1+ {[%emt 0:00:30]} 39. Kh2 {[%emt 0:00:30]} Kg7 {[%emt 0:00:30]} 40. Qxc5 {[%emt 0:00:30]} Qxb2 {[%emt 0:00:30]} 41. Qxb4 {[%emt 0:00:30]} Qxc2 {[%emt 0:00:30]} 42. Qa5 {[%emt 0:00:30]} Qxb3 {[%emt 0:00:30]} 43. Qxa6 {[%emt 0:00:30]} Qe3 {[%emt 0:00:30]} 44. Qd6 {[%emt 0:00:30]} Qf4+ {[%emt 0:00:30]} 45. Kg1 {[%emt 0:00:30]} h5 {[%emt 0:00:30]} 46. Qd7 {[%emt 0:00:30]} Kf6 {[%emt 0:00:30]} 47. Qd8+ {[%emt 0:00:30]} Ke6 {[%emt 0:00:30]} 48. Qe8+ {[%emt 0:00:30]} Kd6 {[%emt 0:00:30]} 49. Qd8+ {[%emt 0:00:30]} Kc5 {[%emt 0:00:30]} 50. Qa5+ {[%emt 0:00:30]} Kc4 {[%emt 0:00:30]} 51. Qa6+ {[%emt 0:00:30]} Kc3 {[%emt 0:00:30]} 52. Qa5+ {[%emt 0:00:30]} Kc2 {[%emt 0:00:30]} 53. Qa2+ {[%emt 0:00:30]} Kd1 {[%emt 0:00:30]} 54. Qb3+ {[%emt 0:00:30]} Ke2 {[%emt 0:00:30]} 55. Qb5+ {[%emt 0:00:30]} Kd1 {[%emt 0:00:30]} 56. Qb3+ {[%emt 0:00:30]} Kd2 {[%emt 0:00:30]} 1/2-1/2